fUSD/lending_fUSD_20240125
["ID","MTS","AMOUNT","RATE_DAILY","PERIOD"]
[312662620,1706141487814,-500.0,0.0005041,31]
[312662621,1706141487822,-500.0,0.0005041,31]
[312662622,1706141487831,-500.0,0.0005041,31]
[312662623,1706141487840,-500.0,0.0005041,31]
[312662624,1706141487849,-500.0,0.0005041,31]
[312662625,1706141487858,-697.72,0.0005041,2]
[312662626,1706141487867,-500.0,0.0005041,31]
[312662627,1706141487876,-500.0,0.0005041,31]
[312662628,1706141487886,-500.0,0.0005041,31]
[312662629,1706141487895,-500.0,0.0005041,31]
[312662630,1706141487904,-500.0,0.0005041,31]
[312662631,1706141487913,-502.99,0.0005041,31]
[312662632,1706141487922,-500.0,0.0005041,31]
[312662633,1706141487932,-500.0,0.0005041,31]
[312662634,1706141487941,-500.0,0.0005041,31]
[312662635,1706141487950,-500.0,0.0005041,31]
[312662636,1706141487959,-500.0,0.0005041,31]
[312662637,1706141487968,-500.0,0.0005041,31]
[312662638,1706141487977,-500.0,0.0005041,31]
[312662639,1706141487986,-1084.63,0.0005041,31]
[312662640,1706141487995,-500.0,0.0005041,31]
[312662641,1706141488004,-500.0,0.0005041,31]
[312662642,1706141488013,-500.0,0.0005041,31]
[312662643,1706141488023,-500.0,0.0005041,31]
[312662644,1706141488032,-500.0,0.0005041,31]
[312662645,1706141488042,-500.0,0.0005041,31]
[312662646,1706141488051,-500.0,0.0005041,31]
[312662647,1706141488060,-500.0,0.0005041,31]
[312662648,1706141488070,-500.0,0.0005041,31]
[312662649,1706141488079,-500.0,0.0005041,31]
[312662650,1706141488088,-500.0,0.0005041,31]
[312662651,1706141488097,-500.0,0.0005041,31]
[312662652,1706141488106,-500.0,0.0005041,31]
[312662653,1706141488115,-500.0,0.0005041,31]
[312662654,1706141488124,-500.0,0.0005041,31]
[312662655,1706141488133,-500.0,0.0005041,60]
[312662656,1706141488142,-500.0,0.0005041,31]
[312662657,1706141488151,-500.0,0.0005041,31]
[312662658,1706141488159,-500.0,0.0005041,31]
[312662659,1706141488169,-563.82,0.0005041,31]
[312662660,1706141488178,-500.0,0.0005041,31]
[312662661,1706141488187,-500.0,0.0005041,31]
[312662662,1706141488196,-500.0,0.0005041,31]
[312662663,1706141488205,-1246.63,0.0005041,7]
[312662664,1706141488214,-500.0,0.0005041,31]
[312662665,1706141488224,-500.0,0.0005041,31]
[312662666,1706141488234,-669.25,0.0005041,20]
[312662667,1706141488244,-500.0,0.0005041,31]
[312662668,1706141488254,-500.0,0.0005041,31]
[312662669,1706141488263,-500.0,0.0005041,31]
[312662670,1706141488273,-500.0,0.0005041,31]
[312662671,1706141488283,-500.0,0.0005041,31]
[312662672,1706141488292,-500.0,0.0005041,31]
[312662673,1706141488304,-500.0,0.0005041,31]
[312662674,1706141488314,-500.0,0.0005041,31]
[312662675,1706141488323,-500.0,0.0005041,31]
[312662676,1706141488333,-500.0,0.0005041,31]
[312662677,1706141488342,-500.0,0.0005041,31]
[312662678,1706141488351,-543.21891689,0.0005041,31]
[312662679,1706141488360,-500.0,0.0005041,31]
[312662680,1706141488370,-500.0,0.0005041,31]
[312662681,1706141488379,-500.0,0.0005041,31]
[312662682,1706141488388,-500.0,0.0005041,31]
[312662683,1706141488397,-500.0,0.0005041,31]
[312662684,1706141488406,-500.0,0.0005041,31]
[312662685,1706141488415,-500.0,0.0005041,31]
[312662686,1706141488425,-500.0,0.0005041,31]
[312662687,1706141488433,-500.0,0.0005041,31]
[312662688,1706141488444,-500.0,0.0005041,31]
[312662689,1706141488453,-523.88,0.0005041,31]
[312662690,1706141488462,-500.0,0.0005041,14]
[312662691,1706141488472,-500.0,0.0005041,31]
[312662692,1706141488481,-500.0,0.0005041,31]
[312662693,1706141488490,-500.0,0.0005041,31]
[312662694,1706141488499,-500.0,0.0005041,31]
[312662695,1706141488508,-500.0,0.0005041,31]
[312662696,1706141488517,-500.0,0.0005041,31]
[312662697,1706141488527,-500.0,0.0005041,31]
[312662698,1706141488536,-1233.91,0.0005041,7]
[312662699,1706141488545,-526.57,0.0005041,31]
[312662700,1706141488553,-1157.14,0.0005041,31]
[312662701,1706141488565,-500.0,0.0005041,31]
[312662702,1706141488574,-500.0,0.0005041,31]
[312662703,1706141488583,-500.0,0.0005041,31]
[312662704,1706141488591,-500.0,0.0005041,31]
[312662705,1706141488600,-500.0,0.0005041,31]
[312662706,1706141488609,-500.0,0.0005041,31]
[312662707,1706141488618,-500.0,0.0005041,31]
[312662708,1706141488627,-603.83483522,0.0005041,31]
[312662709,1706141488637,-594.98,0.0005041,31]
[312662710,1706141488646,-500.0,0.0005041,31]
[312662711,1706141488655,-4118.15,0.0005041,15]
[312662712,1706141488664,-500.0,0.0005041,31]
[312662713,1706141488673,-500.0,0.0005041,31]
[312662714,1706141488682,-500.0,0.0005041,31]
[312662715,1706141488691,-500.0,0.0005041,31]
[312662716,1706141488700,-500.0,0.0005041,31]
[312662717,1706141488709,-621.48,0.0005041,31]
[312662718,1706141488718,-500.0,0.0005041,31]
[312662719,1706141488727,-500.0,0.0005041,31]
[312662720,1706141488736,-1968.51,0.0005041,31]
[312662721,1706141488746,-500.0,0.0005041,31]
[312662722,1706141488756,-500.0,0.0005041,31]
[312662723,1706141488766,-500.0,0.0005041,31]
[312662724,1706141488775,-500.0,0.0005041,31]
[312662725,1706141488785,-500.0,0.0005041,31]
[312662726,1706141488794,-500.0,0.0005041,31]
[312662727,1706141488803,-500.0,0.0005041,31]
[312662728,1706141488812,-937.73,0.0005041,2]
[312662729,1706141488821,-500.0,0.0005041,31]
[312662730,1706141488831,-500.0,0.0005041,31]
[312662731,1706141488840,-500.0,0.0005041,31]
[312662732,1706141488849,-500.0,0.0005041,31]
[312662733,1706141488858,-4141.1,0.0005041,31]
[312662734,1706141488868,-500.0,0.0005041,31]
[312662735,1706141488878,-500.0,0.0005041,31]
[312662736,1706141488886,-500.0,0.0005041,31]
[312662737,1706141488895,-500.0,0.0005041,31]
[312662738,1706141488904,-500.0,0.0005041,31]
[312662739,1706141488913,-500.0,0.0005041,31]
[312662740,1706141488923,-500.0,0.0005041,31]
[312662741,1706141488933,-500.0,0.0005041,31]
[312662742,1706141488943,-500.0,0.0005041,31]
[312662743,1706141488959,-500.0,0.0005041,31]
[312662744,1706141488972,-500.0,0.0005041,31]
[312662745,1706141488981,-728.06,0.0005041,31]
[312662746,1706141488990,-500.0,0.0005041,31]
[312662747,1706141489000,-500.0,0.0005041,31]
[312662748,1706141489009,-500.0,0.0005041,31]
[312662749,1706141489018,-973.03,0.0005041,2]
[312662750,1706141489028,-500.0,0.0005041,31]
[312662751,1706141489038,-500.0,0.0005041,31]
[312662752,1706141489047,-500.0,0.0005041,31]
[312662753,1706141489057,-500.0,0.0005041,31]
[312662754,1706141489067,-500.0,0.0005041,31]
[312662755,1706141489076,-500.0,0.0005041,31]
[312662756,1706141489086,-1697.01,0.0005041,31]
[312662757,1706141489095,-500.0,0.0005041,31]
[312662758,1706141489105,-536.21025854,0.0005041,31]
[312662759,1706141489114,-500.0,0.0005041,31]
[312662760,1706141489123,-500.0,0.0005041,31]
[312662761,1706141489132,-556.66,0.0005041,31]
[312662762,1706141489141,-500.0,0.0005041,31]
[312662763,1706141489151,-500.0,0.0005041,31]
[312662764,1706141489160,-681.8,0.0005041,31]
[312662765,1706141489170,-797.85,0.0005041,31]
[312662766,1706141489179,-500.0,0.0005041,31]
[312662767,1706141489189,-508.04,0.0005041,31]
[312662768,1706141489198,-500.0,0.0005041,31]
[312662769,1706141489207,-500.0,0.0005041,31]
[312662770,1706141489217,-500.0,0.0005041,31]
[312662771,1706141489228,-659.17,0.0005041,31]
[312662772,1706141489237,-500.0,0.0005041,31]
[312662773,1706141489246,-514.92,0.0005041,31]
[312662774,1706141489256,-520.3,0.0005041,31]
[312662775,1706141489265,-717.84,0.0005041,31]
[312662776,1706141489277,-1187.72,0.0005041,31]
[312662777,1706141489287,-500.0,0.0005041,31]
[312662778,1706141489296,-563.62,0.0005041,31]
[312662779,1706141489306,-500.0,0.0005041,31]
[312662780,1706141489316,-500.0,0.0005041,31]
[312662781,1706141489325,-203.82,0.0005041,31]
[312662782,1706141489334,-500.0,0.0005041,31]
[312662783,1706141489343,-1119.03,0.0005041,2]
[312662784,1706141489353,-1126.94,0.0005041,31]
[312662785,1706141489362,-551.67,0.0005041,31]
[312662786,1706141489371,-1035.65,0.0005041,31]
[312662787,1706141489381,-500.0,0.0005041,31]
[312662788,1706141489390,-738.6,0.0005041,31]
[312662789,1706141489399,-500.0,0.0005041,31]
[312662790,1706141489409,-1041.4,0.0005041,31]
[312662791,1706141489419,-500.0,0.0005041,31]
[312662792,1706141489429,-665.87,0.0005041,31]
[312662793,1706141489438,-500.0,0.0005041,31]
[312662794,1706141489449,-511.53,0.0005041,31]
[312662795,1706141489458,-500.0,0.0005041,31]
[312662796,1706141489468,-531.79,0.0005041,31]
[312662797,1706141489477,-693.29,0.0005041,31]
[312662798,1706141489487,-1258.54,0.0005041,31]
[312662799,1706141489496,-569.14,0.0005041,31]
[312662800,1706141489506,-500.0,0.0005041,31]
[312662801,1706141489515,-500.0,0.0005041,31]
[312662802,1706141489524,-500.0,0.0005041,31]
[312662803,1706141489534,-500.0,0.0005041,31]
[312662804,1706141489543,-523.57,0.0005041,31]
[312662805,1706141489553,-500.0,0.0005041,31]
[312662806,1706141489563,-3674.77,0.0005041,31]
[312662807,1706141489572,-3124.04,0.0005041,31]
[312662808,1706141489582,-1845.53,0.0005041,31]
[312662809,1706141489591,-698.55,0.0005041,31]
[312662810,1706141489601,-500.0,0.0005041,31]
[312662811,1706141489610,-500.0,0.0005041,31]
[312662812,1706141489619,-500.0,0.0005041,31]
[312662813,1706141489628,-3836.74,0.0005041,5]
[312662814,1706141489638,-500.0,0.0005041,31]
[312662815,1706141489648,-1206.46,0.0005041,31]
[312662816,1706141489658,-500.0,0.0005041,31]
[312662817,1706141489667,-500.0,0.0005041,31]
[312662818,1706141489677,-1295.76,0.0005041,31]
[312662819,1706141489686,-500.0,0.0005041,31]
[312662820,1706141489696,-500.0,0.0005041,31]
[312662821,1706141489705,-766.32,0.0005041,31]
[312662822,1706141489714,-500.0,0.0005041,31]
[312662823,1706141489723,-944.79,0.0005041,31]
[312662824,1706141489733,-585.71,0.0005041,31]
[312662825,1706141489742,-5283.49,0.0005041,5]
[312662826,1706141489751,-500.0,0.0005041,31]
[312662827,1706141489761,-500.0,0.0005041,31]
[312662828,1706141489770,-500.0,0.0005041,31]
[312662829,1706141489779,-718.1,0.0005041,31]
[312662830,1706141489788,-488.6915651,0.0005041,31]
[312662831,1706141489798,-966.39,0.0005041,31]
[312662832,1706141489807,-500.0,0.0005041,31]
[312662833,1706141489816,-1006.46,0.0005041,31]
[312662834,1706141489825,-517.29,0.0005041,31]
[312662835,1706141489834,-8715.7,0.0005041,31]
[312662836,1706141489843,-567.82,0.0005041,31]
[312662837,1706141489853,-608.48,0.0005041,31]
[312662838,1706141489862,-500.0,0.0005041,31]
[312662839,1706141489871,-500.0,0.0005041,31]
[312662840,1706141489880,-500.0,0.0005041,31]
[312662841,1706141489890,-5784.02,0.0005041,31]
[312662842,1706141489899,-500.0,0.0005041,31]
[312662843,1706141489908,-672.35,0.0005041,31]
[312662844,1706141489918,-719.02,0.0005041,31]
[312662845,1706141489927,-660.52,0.0005041,31]
[312662846,1706141489936,-571.27,0.0005041,31]
[312662847,1706141489945,-415.60353582,0.0005041,31]
[312662848,1706141489955,-500.0,0.0005041,31]
[312662849,1706141489965,-500.0,0.0005041,31]
[312662850,1706141489974,-681.13,0.0005041,31]
[312662851,1706141489983,-500.0,0.0005041,31]
[312662852,1706141489992,-500.0,0.0005041,31]
[312662853,1706141490001,-500.0,0.0005041,31]
[312662854,1706141490010,-687.75,0.0005041,31]
[312662855,1706141490020,-742.38,0.0005041,31]
[312662856,1706141490029,-2393.75,0.0005041,31]
[312662857,1706141490038,-500.0,0.0005041,31]
[312662858,1706141490048,-500.0,0.0005041,31]
[312662859,1706141490057,-5066.61,0.0005041,31]
[312662860,1706141490238,-500.0,0.0005041,31]
[312662861,1706141490263,-500.0,0.0005041,31]
[312662862,1706141490274,-572.67,0.0005041,31]
[312662863,1706141490284,-500.0,0.0005041,31]
[312662864,1706141490295,-500.0,0.0005041,31]
[312662865,1706141490305,-2453.54,0.0005041,31]
[312662866,1706141490315,-500.0,0.0005041,31]
[312662867,1706141490324,-2701.77,0.0005041,31]
[312662868,1706141490334,-500.0,0.0005041,31]
[312662869,1706141490343,-500.0,0.0005041,31]
[312662870,1706141490352,-580.27,0.0005041,31]
[312662871,1706141490361,-584.5,0.0005041,31]
[312662872,1706141490371,-500.0,0.0005041,31]
[312662873,1706141490381,-500.0,0.0005041,31]
[312662874,1706141490390,-1141.79,0.0005041,31]
[312662875,1706141490400,-1360.18,0.0005041,31]
[312662876,1706141490409,-1000.0,0.0005041,2]
[312662877,1706141490418,-693.55,0.0005041,31]
[312662878,1706141490428,-543.89,0.0005041,31]
[312662879,1706141490438,-683.16,0.0005041,31]
[312662880,1706141490447,-500.0,0.0005041,31]
[312662881,1706141490456,-500.0,0.0005041,31]
[312662882,1706141490467,-500.0,0.0005041,31]
[312662883,1706141490476,-500.0,0.0005041,31]
[312662884,1706141490485,-835.92,0.0005041,31]
[312662885,1706141490494,-608.94,0.0005041,31]
[312662886,1706141490504,-1468.94,0.0005041,31]
[312662887,1706141490513,-578.45,0.0005041,31]
[312662888,1706141490522,-500.0,0.0005041,31]
[312662889,1706141490532,-762.76168564,0.0005041,30]
[312662890,1706141490541,-500.0,0.0005041,31]
[312662891,1706141490551,-552.79,0.0005041,31]
[312662892,1706141490560,-706.67,0.0005041,31]
[312662893,1706141490571,-2066.55,0.0005041,31]
[312662894,1706141490580,-540.87,0.0005041,31]
[312662895,1706141490589,-582.15,0.0005041,31]
[312662896,1706141490597,-500.0,0.0005041,31]
[312662897,1706141490606,-500.0,0.0005041,31]
[312662898,1706141490616,-639.06,0.0005041,31]
[312662899,1706141490625,-500.0,0.0005041,31]
[312662900,1706141490634,-500.0,0.0005041,31]
[312662901,1706141490643,-740.88,0.0005041,31]
[312662902,1706141490652,-700.44,0.0005041,31]
[312662903,1706141490661,-500.0,0.0005041,31]
[312662904,1706141490670,-500.0,0.0005041,31]
[312662905,1706141490679,-500.0,0.0005041,31]
[312662906,1706141490688,-537.04,0.0005041,31]
[312662907,1706141490697,-751.1,0.0005041,31]
[312662908,1706141490706,-500.0,0.0005041,31]
[312662909,1706141490716,-677.43,0.0005041,31]
[312662910,1706141490725,-500.0,0.0005041,31]
[312662911,1706141490734,-2280.94,0.0005041,31]
[312662912,1706141490744,-500.0,0.0005041,31]
[312662913,1706141490753,-500.0,0.0005041,31]
[312662914,1706141490763,-500.0,0.0005041,31]
[312662915,1706141490772,-547.24,0.0005041,31]
[312662916,1706141490782,-500.0,0.0005041,31]
[312662917,1706141490791,-500.0,0.0005041,31]
[312662918,1706141490801,-500.0,0.0005041,31]
[312662919,1706141490811,-1060.9,0.0005041,31]
[312662920,1706141490821,-581.01,0.0005041,31]
[312662921,1706141490830,-500.0,0.0005041,31]
[312662922,1706141490840,-500.0,0.0005041,31]
[312662923,1706141490849,-537.1,0.0005041,31]
[312662924,1706141490859,-500.0,0.0005041,31]
[312662925,1706141490868,-778.86,0.0005041,31]
[312662926,1706141490877,-857.21,0.0005041,31]
[312662927,1706141490887,-500.0,0.0005041,31]
[312662928,1706141490896,-1735.79,0.0005041,31]
[312662929,1706141490906,-500.0,0.0005041,31]
[312662930,1706141490915,-608.69,0.0005041,31]
[312662931,1706141490924,-500.0,0.0005041,31]
[312662932,1706141490934,-645.15,0.0005041,31]
[312662933,1706141490943,-500.0,0.0005041,31]
[312662934,1706141490953,-606.25,0.0005041,31]
[312662935,1706141490963,-500.0,0.0005041,31]
[312662936,1706141490972,-500.0,0.0005041,31]
[312662937,1706141490982,-712.54,0.0005041,31]
[312662938,1706141490991,-1073.61,0.0005041,31]
[312662939,1706141491001,-660.57,0.0005041,31]
[312662940,1706141491011,-1320.68,0.0005041,31]
[312662941,1706141491021,-4966.08,0.0005041,31]
[312662942,1706141491030,-655.7,0.0005041,31]
[312662943,1706141491040,-507.31733703,0.0005041,31]
[312662944,1706141491049,-992.0,0.0005041,31]
[312662945,1706141491059,-500.0,0.0005041,31]
[312662946,1706141491068,-1315.35,0.0005041,31]
[312662947,1706141491078,-500.0,0.0005041,31]
[312662948,1706141491087,-288.92567281,0.0005041,31]
[312662949,1706141491097,-500.0,0.0005041,31]
[312662950,1706141491106,-796.46,0.0005041,31]
[312662951,1706141491115,-500.0,0.0005041,31]
[312662952,1706141491125,-500.0,0.0005041,31]
[312662953,1706141491134,-500.0,0.0005041,31]
[312662954,1706141491143,-3061.04,0.0005041,31]
[312662955,1706141491153,-564.19,0.0005041,31]
[312662956,1706141491162,-860.59,0.0005041,31]
[312662957,1706141491172,-500.0,0.0005041,31]
[312662958,1706141491182,-553.53,0.0005041,31]
[312662959,1706141491192,-500.0,0.0005041,31]
[312662960,1706141491201,-500.0,0.0005041,31]
[312662961,1706141491211,-2426.6,0.0005041,31]
[312662962,1706141491221,-500.0,0.0005041,31]
[312662963,1706141491230,-547.26,0.0005041,31]
[312662964,1706141491240,-500.0,0.0005041,31]
[312662965,1706141491250,-1086.36,0.0005041,31]
[312662966,1706141491260,-959.04,0.0005041,31]
[312662967,1706141491269,-649.59,0.0005041,31]
[312662968,1706141491280,-500.0,0.0005041,31]
[312662969,1706141491292,-703.22,0.0005041,31]
[312662970,1706141491302,-600.26,0.0005041,31]
[312662971,1706141491312,-740.74,0.0005041,31]
[312662972,1706141491322,-787.85,0.0005041,31]
[312662973,1706141491333,-500.0,0.0005041,31]
[312662974,1706141491343,-730.54,0.0005041,31]
[312662975,1706141491353,-765.5,0.0005041,31]
[312662976,1706141491363,-500.0,0.0005041,31]
[312662977,1706141491373,-500.0,0.0005041,31]
[312662978,1706141491383,-599.29,0.0005041,31]
[312662979,1706141491393,-500.0,0.0005041,31]
[312662980,1706141491403,-737.72,0.0005041,31]
[312662981,1706141491413,-500.55,0.0005041,31]
[312662982,1706141491423,-500.0,0.0005041,31]
[312662983,1706141491432,-847.8,0.0005041,31]
[312662984,1706141491442,-500.0,0.0005041,31]
[312662985,1706141491451,-539.53,0.0005041,31]
[312662986,1706141491461,-501.79,0.0005041,31]
[312662987,1706141491470,-500.0,0.0005041,31]
[312662988,1706141491479,-714.81,0.0005041,31]
[312662989,1706141491489,-560.58,0.0005041,31]
[312662990,1706141491499,-765.11,0.0005041,31]
[312662991,1706141491508,-500.0,0.0005041,31]
[312662992,1706141491518,-5000.0,0.0005041,14]
[312662993,1706141491527,-500.0,0.0005041,31]
[312662994,1706141491537,-500.0,0.0005041,31]
[312662995,1706141491547,-1451.54,0.0005041,31]
[312662996,1706141491557,-500.0,0.0005041,31]
[312662997,1706141491568,-764.66,0.0005041,31]
[312662998,1706141491577,-673.27,0.0005041,31]
[312662999,1706141491586,-1105.43,0.0005041,31]
[312663000,1706141491597,-3144.18,0.0005041,31]
[312663001,1706141491606,-500.0,0.0005041,31]
[312663002,1706141491616,-500.0,0.0005041,31]
[312663003,1706141491625,-500.0,0.0005041,31]
[312663004,1706141491635,-748.16,0.0005041,31]
[312663005,1706141491645,-678.69,0.0005041,31]
[312663006,1706141491655,-500.0,0.0005041,120]
[312663007,1706141491664,-500.0,0.0005041,31]
[312663008,1706141491674,-548.31,0.0005041,31]
[312663009,1706141491684,-532.81,0.0005041,31]
[312663010,1706141491693,-500.0,0.0005041,31]
[312663011,1706141491702,-515.5,0.0005041,31]
[312663012,1706141491711,-792.67,0.0005041,31]
[312663013,1706141491721,-500.0,0.0005041,31]
[312663014,1706141491731,-500.0,0.0005041,31]
[312663015,1706141491741,-1247.69,0.0005041,31]
[312663016,1706141491750,-612.72,0.0005041,31]
[312663017,1706141491760,-1295.4,0.0005041,31]
[312663018,1706141491771,-198.51344641,0.0005041,31]
[312663019,1706141491780,-820.44,0.0005041,31]
[312663020,1706141491790,-500.0,0.0005041,31]
[312663021,1706141491800,-939.98,0.0005041,31]
[312663022,1706141491809,-689.9,0.0005041,31]
[312663023,1706141491819,-500.0,0.0005041,31]
[312663024,1706141491829,-500.0,0.0005041,31]
[312663025,1706141491839,-650.74,0.0005041,31]
[312663026,1706141491849,-3710.41,0.0005041,31]
[312663027,1706141491858,-594.93,0.0005041,2]
[312663028,1706141491868,-646.07,0.0005041,31]
[312663029,1706141491878,-500.0,0.0005041,31]
[312663030,1706141491888,-269.54607105,0.0005041,31]
[312663031,1706141491898,-500.0,0.0005041,31]
[312663032,1706141491908,-500.0,0.0005041,31]
[312663033,1706141491918,-2728.94,0.0005041,31]
[312663034,1706141491927,-1281.32,0.0005041,31]
[312663035,1706141491937,-1822.59,0.0005041,2]
[312663036,1706141491946,-500.0,0.0005041,31]
[312663037,1706141491956,-500.0,0.0005041,31]
[312663038,1706141491965,-500.0,0.0005041,31]
[312663039,1706141491974,-500.0,0.0005041,31]
[312663040,1706141491984,-500.0,0.0005041,31]
[312663041,1706141491994,-500.0,0.0005041,31]
[312663042,1706141492004,-1129.79,0.0005041,31]
[312663043,1706141492013,-724.18,0.0005041,31]
[312663044,1706141492024,-605.74,0.0005041,31]
[312663045,1706141492035,-500.0,0.0005041,31]
[312663046,1706141492045,-500.0,0.0005041,31]
[312663047,1706141492055,-500.0,0.0005041,31]
[312663048,1706141492064,-824.96,0.0005041,31]
[312663049,1706141492075,-887.42,0.0005041,31]
[312663050,1706141492084,-500.0,0.0005041,31]
[312663051,1706141492093,-500.0,0.0005041,31]
[312663052,1706141492102,-500.0,0.0005041,31]
[312663053,1706141492113,-866.53,0.0005041,31]
[312663054,1706141492122,-510.96,0.0005041,31]
[312663055,1706141492131,-757.86,0.0005041,2]
[312663056,1706141492141,-500.0,0.0005041,31]
[312663057,1706141492151,-500.0,0.0005041,31]
[312663058,1706141492161,-500.0,0.0005041,31]
[312663059,1706141492171,-887.79,0.0005041,31]
[312663060,1706141492181,-566.99,0.0005041,31]
[312663061,1706141492191,-500.0,0.0005041,31]
[312663062,1706141492200,-1000.0,0.0005041,120]
[312663063,1706141492209,-176.55973396,0.00050414,60]
[312663064,1706141492219,-156.43151779,0.00050418,60]
[312663065,1706141492228,-1463.20744382,0.00050433,60]
[312663066,1706141492238,-2527.00341178,0.00050454,22]
[312663067,1706141492247,-584.90819405,0.0005046,60]
[312663068,1706141492257,-150.0,0.00050466,120]
[312663069,1706141492267,-150.0,0.00050469,2]
[312663070,1706141492280,-174.00895376,0.00050474,60]
[312663071,1706141492289,-432.40353136,0.00050476,60]
[312663072,1706141492299,-151.3,0.00050489,120]
[312663073,1706141492308,-151.30998428,0.00050491,46]
[312663074,1706141492321,-647.69,0.00050493,120]
[312663075,1706141492330,-153.21386404,0.00050495,60]
[312663076,1706141492340,-150.0125,0.00050498,24]
[312663077,1706141492349,-153.87365434,0.00050499,60]
[312663078,1706141492359,-200.0,0.000505,28]
[312663079,1706141492369,-162.27493029,0.00050512,60]
[312663080,1706141492380,-349.31,0.00050514,2]
[312663081,1706141492390,-156.43151779,0.00050532,60]
[312663082,1706141492410,-158.39181887,0.00050537,60]
[312663083,1706141492423,-153.21386404,0.00050545,60]
[312663084,1706141492434,-156.43151779,0.00050554,60]
[312663085,1706141492445,-167.05741097,0.00050581,60]
[312663086,1706141492456,-156.42670912,0.00050598,60]
[312663087,1706141492467,-153.21386404,0.00050603,60]
[312663088,1706141492478,-176.58520058,0.00050614,60]
[312663089,1706141492487,-452.49609033,0.00050637,60]
[312663090,1706141492497,-1463.20744382,0.00050657,60]
[312663091,1706141492507,-170.90257976,0.00050672,60]
[312663092,1706141492518,-162.64199962,0.00050677,60]
[312663093,1706141492528,-500.0,0.00050684,31]
[312663094,1706141492538,-500.0,0.00050684,31]
[312663095,1706141492547,-500.0,0.00050684,31]
[312663096,1706141492557,-500.0,0.00050684,31]
[312663097,1706141492569,-500.0,0.00050684,31]
[312663098,1706141492579,-500.0,0.00050684,31]
[312663099,1706141492588,-500.0,0.00050684,31]
[312663100,1706141492598,-500.0,0.00050684,31]
[312663101,1706141492608,-571.87,0.00050684,31]
[312663102,1706141492618,-500.0,0.00050684,31]
[312663103,1706141492628,-500.0,0.00050684,31]
[312663104,1706141492637,-500.0,0.00050684,31]
[312663105,1706141492647,-500.0,0.00050684,31]
[312663106,1706141492656,-500.0,0.00050684,31]
[312663107,1706141492666,-500.0,0.00050684,31]
[312663108,1706141492676,-500.0,0.00050684,31]
[312663109,1706141492685,-500.0,0.00050684,31]
[312663110,1706141492694,-500.0,0.00050684,31]
[312663111,1706141492704,-500.0,0.00050684,31]
[312663112,1706141492713,-500.0,0.00050684,31]
[312663113,1706141492723,-500.0,0.00050684,31]
[312663114,1706141492732,-546.34604659,0.00050684,31]
[312663115,1706141492742,-500.0,0.00050684,31]
[312663116,1706141492751,-500.0,0.00050684,31]
[312663117,1706141492760,-500.0,0.00050684,31]
[312663118,1706141492770,-500.0,0.00050684,31]
[312663119,1706141492779,-500.0,0.00050684,31]